[Event "Titled Tuesday Blitz November 15 Early 2022"]
[White "Avila Rodriguez, Joshua Ad"]
[Black "Marchesich, Giovanni"]
[WhiteFideId "5126444"]
[BlackFideId "2824790"]
[WhiteElo "2125"]
[BlackElo "2200"]
[Result "1/2-1/2"]
[Round "09"]
[TimeControl "180+1"]
[Date "2022.11.16"]
[WhiteClock "0:00:09"]
[BlackClock "0:00:40"]

1. e4 {[%clk 0:03:00]}  e5 {[%clk 0:02:59]} 2. Nf3 {[%clk 0:03:01]}  d5 {[%clk 0:02:58]} 3. Nxe5 {[%clk 0:02:56]}  Bd6 {[%clk 0:02:58]} 4. d4 {[%clk 0:02:48]}  dxe4 {[%clk 0:02:58]} 5. Nc4 {[%clk 0:02:43]}  Nf6 {[%clk 0:02:58]} 6. Be2 {[%clk 0:02:41]}  O-O {[%clk 0:02:58]} 7. O-O {[%clk 0:02:39]}  Bf5 {[%clk 0:02:58]} 8. Nc3 {[%clk 0:02:37]}  Re8 {[%clk 0:02:57]} 9. Bg5 {[%clk 0:02:34]}  h6 {[%clk 0:02:57]} 10. Bh4 {[%clk 0:02:34]}  Nbd7 {[%clk 0:02:54]} 11. Bg3 {[%clk 0:02:19]}  Bxg3 {[%clk 0:02:53]} 12. hxg3 {[%clk 0:02:14]}  Nb6 {[%clk 0:02:51]} 13. Ne3 {[%clk 0:02:13]}  Bg6 {[%clk 0:02:50]} 14. a4 {[%clk 0:02:02]}  a5 {[%clk 0:02:48]} 15. Qd2 {[%clk 0:01:59]}  c6 {[%clk 0:02:48]} 16. Rad1 {[%clk 0:01:58]}  Qe7 {[%clk 0:02:47]} 17. g4 {[%clk 0:01:56]}  Red8 {[%clk 0:02:45]} 18. Nf5 {[%clk 0:01:35]}  Qb4 {[%clk 0:02:41]} 19. Qc1 {[%clk 0:01:07]}  Bxf5 {[%clk 0:02:34]} 20. gxf5 {[%clk 0:01:06]}  Rxd4 {[%clk 0:02:35]} 21. Rxd4 {[%clk 0:01:04]}  Qxd4 {[%clk 0:02:36]} 22. Rd1 {[%clk 0:01:04]}  Qe5 {[%clk 0:02:35]} 23. Qe3 {[%clk 0:01:03]}  Nbd5 {[%clk 0:02:32]} 24. Nxd5 {[%clk 0:01:02]}  Nxd5 {[%clk 0:02:32]} 25. Qb3 {[%clk 0:00:58]}  Qc7 {[%clk 0:02:12]} 26. Bc4 {[%clk 0:00:57]}  Rd8 {[%clk 0:02:11]} 27. Bxd5 {[%clk 0:00:56]}  cxd5 {[%clk 0:02:04]} 28. Rxd5 {[%clk 0:00:57]}  Rxd5 {[%clk 0:02:00]} 29. Qxd5 {[%clk 0:00:58]}  Qxc2 {[%clk 0:02:00]} 30. Qxb7 {[%clk 0:00:35]}  Qxa4 {[%clk 0:01:59]} 31. Qb8+ {[%clk 0:00:34]}  Kh7 {[%clk 0:01:58]} 32. Qe5 {[%clk 0:00:34]}  Qb4 {[%clk 0:01:43]} 33. g3 {[%clk 0:00:32]}  a4 {[%clk 0:01:36]} 34. Kg2 {[%clk 0:00:30]}  Qb7 {[%clk 0:01:35]} 35. Kh2 {[%clk 0:00:30]}  h5 {[%clk 0:01:34]} 36. f6 {[%clk 0:00:29]}  Qb6 {[%clk 0:01:24]} 37. Qxh5+ {[%clk 0:00:27]}  Kg8 {[%clk 0:01:24]} 38. fxg7 {[%clk 0:00:25]}  Qxf2+ {[%clk 0:01:24]} 39. Kh3 {[%clk 0:00:24]}  Qf1+ {[%clk 0:01:22]} 40. Kh2 {[%clk 0:00:21]}  Qf2+ {[%clk 0:01:22]} 41. Kh3 {[%clk 0:00:21]}  Kxg7 {[%clk 0:01:20]} 42. Qg4+ {[%clk 0:00:21]}  Kf8 {[%clk 0:01:12]} 43. Qxe4 {[%clk 0:00:21]}  Qxb2 {[%clk 0:01:10]} 44. Qa8+ {[%clk 0:00:20]}  Kg7 {[%clk 0:01:09]} 45. Qxa4 {[%clk 0:00:21]}  Qe5 {[%clk 0:01:07]} 46. Qg4+ {[%clk 0:00:21]}  Kf8 {[%clk 0:01:07]} 47. Qc8+ {[%clk 0:00:21]}  Kg7 {[%clk 0:01:07]} 48. Qg4+ {[%clk 0:00:21]}  Kf6 {[%clk 0:01:07]} 49. Qh4+ {[%clk 0:00:20]}  Ke6 {[%clk 0:01:07]} 50. Qg4+ {[%clk 0:00:20]}  Kd5 {[%clk 0:01:06]} 51. Qd1+ {[%clk 0:00:20]}  Ke6 {[%clk 0:01:04]} 52. Qb3+ {[%clk 0:00:20]}  Ke7 {[%clk 0:01:04]} 53. Qb7+ {[%clk 0:00:20]}  Kf6 {[%clk 0:01:04]} 54. Qc6+ {[%clk 0:00:20]}  Kg5 {[%clk 0:01:01]} 55. Qc1+ {[%clk 0:00:17]}  Kg6 {[%clk 0:01:01]} 56. Qc2+ {[%clk 0:00:16]}  Kg7 {[%clk 0:00:58]} 57. Qd3 {[%clk 0:00:14]}  Qe6+ {[%clk 0:00:57]} 58. Kg2 {[%clk 0:00:14]}  Qc6+ {[%clk 0:00:57]} 59. Qf3 {[%clk 0:00:14]}  Qc2+ {[%clk 0:00:56]} 60. Kh3 {[%clk 0:00:14]}  f6 {[%clk 0:00:55]} 61. Qg4+ {[%clk 0:00:13]}  Kf7 {[%clk 0:00:55]} 62. Qd7+ {[%clk 0:00:14]}  Kg6 {[%clk 0:00:55]} 63. Qg4+ {[%clk 0:00:15]}  Kh6 {[%clk 0:00:54]} 64. Qf4+ {[%clk 0:00:15]}  Kg7 {[%clk 0:00:54]} 65. Qg4+ {[%clk 0:00:12]}  Kf8 {[%clk 0:00:54]} 66. Qf4 {[%clk 0:00:11]}  Qh7+ {[%clk 0:00:50]} 67. Kg4 {[%clk 0:00:10]}  Qg6+ {[%clk 0:00:50]} 68. Kf3 {[%clk 0:00:10]}  Ke7 {[%clk 0:00:49]} 69. Qe3+ {[%clk 0:00:08]}  Kf7 {[%clk 0:00:49]} 70. Qa7+ {[%clk 0:00:08]}  Kg8 {[%clk 0:00:50]} 71. Qb8+ {[%clk 0:00:09]}  Kg7 {[%clk 0:00:50]} 72. Qc7+ {[%clk 0:00:09]}  Kh6 {[%clk 0:00:50]} 73. Qf4+ {[%clk 0:00:10]}  Kh7 {[%clk 0:00:48]} 74. Qh4+ {[%clk 0:00:10]}  Kg7 {[%clk 0:00:49]} 75. Qf4 {[%clk 0:00:10]}  Qd3+ {[%clk 0:00:49]} 76. Kg2 {[%clk 0:00:11]}  Qe2+ {[%clk 0:00:49]} 77. Kh3 {[%clk 0:00:11]}  Qe1 {[%clk 0:00:46]} 78. Qg4+ {[%clk 0:00:10]}  Kf7 {[%clk 0:00:45]} 79. Qh5+ {[%clk 0:00:11]}  Ke7 {[%clk 0:00:44]} 80. Qh7+ {[%clk 0:00:11]}  Kf8 {[%clk 0:00:44]} 81. Qh8+ {[%clk 0:00:11]}  Kf7 {[%clk 0:00:45]} 82. Qh7+ {[%clk 0:00:11]}  Kf8 {[%clk 0:00:45]} 83. Kg4 {[%clk 0:00:12]}  Qe2+ {[%clk 0:00:41]} 84. Kh3 {[%clk 0:00:11]}  Qf1+ {[%clk 0:00:41]} 85. Kg4 {[%clk 0:00:10]}  Qe2+ {[%clk 0:00:41]} 86. Kh3 {[%clk 0:00:11]}  Qf1+ {[%clk 0:00:42]} 87. Kg4 {[%clk 0:00:11]}  Qd1+ {[%clk 0:00:42]} 88. Kf4 {[%clk 0:00:10]}  Qd2+ {[%clk 0:00:41]} 89. Kf3 {[%clk 0:00:10]}  Qd1+ {[%clk 0:00:40]} 90. Ke3 {[%clk 0:00:09]}  Qe1+ {[%clk 0:00:40]} 91. Kf3 {[%clk 0:00:09]}  Qf1+ {[%clk 0:00:40]} 92. Kg4 {[%clk 0:00:09]} 1/2-1/2


[Site "https://www.chess.com"]

[Event "Titled Tuesday Blitz November 15 Early 2022"]
[White "Barria Zuniga, Daniel"]
[Black "Narayanan, Srinath"]
[WhiteFideId "3400816"]
[BlackFideId "5018420"]
[WhiteElo "2414"]
[BlackElo "2459"]
[Result "1-0"]
[Round "09"]
[TimeControl "180+1"]
[Date "2022.11.16"]
[WhiteClock "0:00:55"]
[BlackClock "0:01:07"]

1. d4 {[%clk 0:03:00]}  Nf6 {[%clk 0:02:58]} 2. c4 {[%clk 0:03:01]}  e6 {[%clk 0:02:58]} 3. Nf3 {[%clk 0:03:01]}  d5 {[%clk 0:02:59]} 4. Nc3 {[%clk 0:03:01]}  Bb4 {[%clk 0:02:57]} 5. Qa4+ {[%clk 0:03:00]}  Nc6 {[%clk 0:02:58]} 6. e3 {[%clk 0:03:01]}  O-O {[%clk 0:02:58]} 7. Bd2 {[%clk 0:03:01]}  Re8 {[%clk 0:02:56]} 8. Rd1 {[%clk 0:02:59]}  Bd7 {[%clk 0:02:53]} 9. Qc2 {[%clk 0:02:58]}  a6 {[%clk 0:02:48]} 10. h3 {[%clk 0:02:52]}  h6 {[%clk 0:02:49]} 11. Bc1 {[%clk 0:02:51]}  Bd6 {[%clk 0:02:48]} 12. a3 {[%clk 0:02:47]}  dxc4 {[%clk 0:02:31]} 13. Bxc4 {[%clk 0:02:46]}  e5 {[%clk 0:02:31]} 14. O-O {[%clk 0:02:45]}  e4 {[%clk 0:02:24]} 15. Nd2 {[%clk 0:02:44]}  Qe7 {[%clk 0:02:25]} 16. f3 {[%clk 0:02:17]}  exf3 {[%clk 0:02:05]} 17. Rxf3 {[%clk 0:02:17]}  b5 {[%clk 0:02:00]} 18. Nd5 {[%clk 0:02:07]}  Bh2+ {[%clk 0:01:29]} 19. Kh1 {[%clk 0:01:55]}  Qd6 {[%clk 0:01:23]} 20. Nxf6+ {[%clk 0:01:53]}  gxf6 {[%clk 0:01:23]} 21. Qg6+ {[%clk 0:01:53]}  Kh8 {[%clk 0:01:23]} 22. Qxh6+ {[%clk 0:01:48]}  Kg8 {[%clk 0:01:24]} 23. Qg6+ {[%clk 0:01:46]}  Kh8 {[%clk 0:01:24]} 24. Qh5+ {[%clk 0:01:38]}  Kg7 {[%clk 0:01:22]} 25. Qxf7+ {[%clk 0:01:37]}  Kh8 {[%clk 0:01:21]} 26. Rxf6 {[%clk 0:01:29]}  bxc4 {[%clk 0:01:19]} 27. Qh5+ {[%clk 0:01:15]}  Kg8 {[%clk 0:01:17]} 28. Qg6+ {[%clk 0:01:13]}  Kh8 {[%clk 0:01:17]} 29. Qh6+ {[%clk 0:01:13]}  Kg8 {[%clk 0:01:17]} 30. Rg6+ {[%clk 0:01:08]}  Qxg6 {[%clk 0:01:12]} 31. Qxg6+ {[%clk 0:01:08]}  Kh8 {[%clk 0:01:13]} 32. Kxh2 {[%clk 0:01:03]}  Ne7 {[%clk 0:01:12]} 33. Qh6+ {[%clk 0:01:00]}  Kg8 {[%clk 0:01:12]} 34. Rf1 {[%clk 0:01:00]}  Rab8 {[%clk 0:01:07]} 35. Rf3 {[%clk 0:00:56]}  Rb6 {[%clk 0:01:06]} 36. Rg3+ {[%clk 0:00:56]}  Kf7 {[%clk 0:01:07]} 37. Rg7+ {[%clk 0:00:55]} 1-0


[Site "https://www.chess.com"]

[Event "Titled Tuesday Blitz November 15 Early 2022"]
[White "Broca Jimenez, Fernando"]
[Black "Seifert, Henryk"]
[WhiteFideId "5104742"]
[BlackFideId "1100963"]
[WhiteElo "2062"]
[BlackElo "2120"]
[Result "0-1"]
[Round "09"]
[TimeControl "180+1"]
[Date "2022.11.16"]
[WhiteClock "0:01:11"]
[BlackClock "0:00:53"]

1. e4 {[%clk 0:03:00]}  e6 {[%clk 0:02:57]} 2. d4 {[%clk 0:03:00]}  d5 {[%clk 0:02:56]} 3. exd5 {[%clk 0:03:01]}  exd5 {[%clk 0:02:55]} 4. Bd3 {[%clk 0:03:02]}  Nc6 {[%clk 0:02:53]} 5. Nf3 {[%clk 0:03:01]}  Bd6 {[%clk 0:02:53]} 6. Bg5 {[%clk 0:02:58]}  Nge7 {[%clk 0:02:51]} 7. O-O {[%clk 0:02:57]}  Bg4 {[%clk 0:02:51]} 8. c3 {[%clk 0:02:57]}  Qd7 {[%clk 0:02:50]} 9. Nbd2 {[%clk 0:02:56]}  O-O-O {[%clk 0:02:44]} 10. Qc2 {[%clk 0:02:54]}  f6 {[%clk 0:02:40]} 11. Bh4 {[%clk 0:02:53]}  Bf5 {[%clk 0:02:40]} 12. Rfe1 {[%clk 0:02:47]}  Bxd3 {[%clk 0:02:38]} 13. Qxd3 {[%clk 0:02:48]}  Qf5 {[%clk 0:02:38]} 14. Qxf5+ {[%clk 0:02:46]}  Nxf5 {[%clk 0:02:38]} 15. Bg3 {[%clk 0:02:45]}  Bxg3 {[%clk 0:02:35]} 16. hxg3 {[%clk 0:02:46]}  h5 {[%clk 0:02:35]} 17. b4 {[%clk 0:02:42]}  Rde8 {[%clk 0:02:33]} 18. b5 {[%clk 0:02:35]}  Na5 {[%clk 0:02:26]} 19. Kf1 {[%clk 0:02:22]}  Kd7 {[%clk 0:02:23]} 20. Rxe8 {[%clk 0:02:19]}  Rxe8 {[%clk 0:02:22]} 21. Re1 {[%clk 0:02:20]}  Rxe1+ {[%clk 0:02:16]} 22. Nxe1 {[%clk 0:02:18]}  g5 {[%clk 0:02:06]} 23. Nd3 {[%clk 0:02:16]}  b6 {[%clk 0:02:05]} 24. Ke2 {[%clk 0:02:10]}  Nd6 {[%clk 0:01:42]} 25. Nb2 {[%clk 0:01:43]}  Nxb5 {[%clk 0:01:40]} 26. Kd3 {[%clk 0:01:39]}  c5 {[%clk 0:01:31]} 27. Kc2 {[%clk 0:01:27]}  cxd4 {[%clk 0:01:27]} 28. c4 {[%clk 0:01:27]}  Na3+ {[%clk 0:01:19]} 29. Kd3 {[%clk 0:01:25]}  dxc4+ {[%clk 0:01:13]} 30. Ndxc4 {[%clk 0:01:25]}  N3xc4 {[%clk 0:01:09]} 31. Nxc4 {[%clk 0:01:24]}  Nxc4 {[%clk 0:01:06]} 32. Kxc4 {[%clk 0:01:25]}  b5+ {[%clk 0:00:56]} 33. Kxd4 {[%clk 0:01:19]}  Kd6 {[%clk 0:00:57]} 34. f3 {[%clk 0:01:17]}  a5 {[%clk 0:00:56]} 35. a3 {[%clk 0:01:16]}  h4 {[%clk 0:00:53]} 36. g4 {[%clk 0:01:05]}  b4 {[%clk 0:00:53]} 37. axb4 {[%clk 0:01:04]}  axb4 {[%clk 0:00:53]} 38. Kc4 {[%clk 0:01:04]}  Ke5 {[%clk 0:00:53]} 39. Kxb4 {[%clk 0:01:05]}  Kf4 {[%clk 0:00:54]} 40. Kc3 {[%clk 0:01:06]}  Kg3 {[%clk 0:00:55]} 41. Kd3 {[%clk 0:01:06]}  Kxg2 {[%clk 0:00:55]} 42. Ke3 {[%clk 0:01:07]}  h3 {[%clk 0:00:56]} 43. f4 {[%clk 0:01:08]}  h2 {[%clk 0:00:55]} 44. fxg5 {[%clk 0:01:09]}  fxg5 {[%clk 0:00:54]} 45. Ke4 {[%clk 0:01:09]}  h1=Q {[%clk 0:00:54]} 46. Kf5 {[%clk 0:01:10]}  Qh4 {[%clk 0:00:54]} 47. Kg6 {[%clk 0:01:10]}  Qxg4 {[%clk 0:00:54]} 48. Kh6 {[%clk 0:01:10]}  Qf4 {[%clk 0:00:53]} 49. Kg6 {[%clk 0:01:11]}  g4 {[%clk 0:00:53]} 0-1


[Site "https://www.chess.com"]

[Event "Titled Tuesday Blitz November 15 Early 2022"]
[White "Carroll, Thomas"]
[Black "Ardila, Oscar Humberto"]
[WhiteFideId "450111"]
[BlackFideId "4404742"]
[WhiteElo "1950"]
[BlackElo "1959"]
[Result "1/2-1/2"]
[Round "09"]
[TimeControl "180+1"]
[Date "2022.11.16"]
[WhiteClock "0:00:11"]
[BlackClock "0:00:46"]

1. d4 {[%clk 0:03:00]}  Nf6 {[%clk 0:02:59]} 2. Bg5 {[%clk 0:03:00]}  e6 {[%clk 0:03:00]} 3. e4 {[%clk 0:02:58]}  Be7 {[%clk 0:03:00]} 4. Nd2 {[%clk 0:02:54]}  d6 {[%clk 0:03:00]} 5. Bd3 {[%clk 0:02:54]}  h6 {[%clk 0:02:59]} 6. Bxf6 {[%clk 0:02:52]}  Bxf6 {[%clk 0:02:59]} 7. c3 {[%clk 0:02:53]}  c5 {[%clk 0:02:58]} 8. Ngf3 {[%clk 0:02:50]}  Nc6 {[%clk 0:02:58]} 9. d5 {[%clk 0:02:50]}  exd5 {[%clk 0:02:58]} 10. exd5 {[%clk 0:02:51]}  Ne5 {[%clk 0:02:58]} 11. Nxe5 {[%clk 0:02:52]}  Bxe5 {[%clk 0:02:57]} 12. Nf3 {[%clk 0:02:52]}  Bf6 {[%clk 0:02:57]} 13. O-O {[%clk 0:02:45]}  O-O {[%clk 0:02:57]} 14. Re1 {[%clk 0:02:45]}  Re8 {[%clk 0:02:57]} 15. h3 {[%clk 0:02:45]}  Bd7 {[%clk 0:02:55]} 16. a4 {[%clk 0:02:39]}  Rxe1+ {[%clk 0:02:54]} 17. Qxe1 {[%clk 0:02:36]}  Qb6 {[%clk 0:02:54]} 18. Qd2 {[%clk 0:02:19]}  Re8 {[%clk 0:02:51]} 19. a5 {[%clk 0:02:14]}  Qc7 {[%clk 0:02:40]} 20. a6 {[%clk 0:02:06]}  b5 {[%clk 0:02:36]} 21. Qf4 {[%clk 0:01:59]}  c4 {[%clk 0:02:30]} 22. Bf5 {[%clk 0:01:58]}  Re2 {[%clk 0:02:00]} 23. Rb1 {[%clk 0:01:39]}  Bxf5 {[%clk 0:01:40]} 24. Qxf5 {[%clk 0:01:39]}  Qb6 {[%clk 0:01:40]} 25. Qc8+ {[%clk 0:01:39]}  Kh7 {[%clk 0:01:39]} 26. Rf1 {[%clk 0:01:13]}  Rxb2 {[%clk 0:01:29]} 27. Qb7 {[%clk 0:00:59]}  Kg6 {[%clk 0:01:24]} 28. h4 {[%clk 0:00:54]}  Ra2 {[%clk 0:01:19]} 29. h5+ {[%clk 0:00:46]}  Kh7 {[%clk 0:01:18]} 30. Qxf7 {[%clk 0:00:45]}  Qxa6 {[%clk 0:01:13]} 31. Qg6+ {[%clk 0:00:38]}  Kh8 {[%clk 0:01:13]} 32. Nd2 {[%clk 0:00:25]}  Rxd2 {[%clk 0:00:50]} 33. Re1 {[%clk 0:00:25]}  Be5 {[%clk 0:00:50]} 34. Qe8+ {[%clk 0:00:25]}  Kh7 {[%clk 0:00:50]} 35. Qg6+ {[%clk 0:00:26]}  Kh8 {[%clk 0:00:49]} 36. f4 {[%clk 0:00:19]}  Qb6+ {[%clk 0:00:47]} 37. Kh1 {[%clk 0:00:14]}  Qf2 {[%clk 0:00:46]} 38. Qe8+ {[%clk 0:00:12]}  Kh7 {[%clk 0:00:46]} 39. Qg6+ {[%clk 0:00:12]}  Kg8 {[%clk 0:00:46]} 40. Qe8+ {[%clk 0:00:12]}  Kh7 {[%clk 0:00:47]} 41. Qg6+ {[%clk 0:00:13]}  Kh8 {[%clk 0:00:47]} 42. Qe8+ {[%clk 0:00:11]}  Kh7 {[%clk 0:00:46]} 1/2-1/2


[Site "https://www.chess.com"]

[Event "Titled Tuesday Blitz November 15 Early 2022"]
[White "Concio, Michael Jr."]
[Black "Aaditya Dhingra"]
[WhiteFideId "5217873"]
[BlackFideId "25678191"]
[WhiteElo "2236"]
[BlackElo "2054"]
[Result "1-0"]
[Round "09"]
[TimeControl "180+1"]
[Date "2022.11.16"]
[WhiteClock "0:00:02"]
[BlackClock "0:00:02"]

1. e4 {[%clk 0:03:00]}  c5 {[%clk 0:02:56]} 2. Nf3 {[%clk 0:03:00]}  d6 {[%clk 0:02:54]} 3. d4 {[%clk 0:03:01]}  cxd4 {[%clk 0:02:55]} 4. Nxd4 {[%clk 0:03:02]}  Nf6 {[%clk 0:02:55]} 5. Nc3 {[%clk 0:03:02]}  a6 {[%clk 0:02:55]} 6. Be2 {[%clk 0:03:02]}  e5 {[%clk 0:02:53]} 7. Nb3 {[%clk 0:03:03]}  Be7 {[%clk 0:02:52]} 8. Be3 {[%clk 0:03:03]}  O-O {[%clk 0:02:52]} 9. g4 {[%clk 0:03:03]}  Be6 {[%clk 0:02:46]} 10. g5 {[%clk 0:03:03]}  Nfd7 {[%clk 0:02:45]} 11. Qd2 {[%clk 0:03:03]}  Nc6 {[%clk 0:02:42]} 12. O-O-O {[%clk 0:02:19]}  b5 {[%clk 0:02:40]} 13. Nd5 {[%clk 0:02:18]}  Bxd5 {[%clk 0:02:39]} 14. exd5 {[%clk 0:02:19]}  Na7 {[%clk 0:02:33]} 15. f4 {[%clk 0:02:10]}  exf4 {[%clk 0:02:29]} 16. Bxf4 {[%clk 0:02:11]}  Ne5 {[%clk 0:02:01]} 17. Nd4 {[%clk 0:02:03]}  Qd7 {[%clk 0:01:55]} 18. h4 {[%clk 0:01:56]}  Rac8 {[%clk 0:01:51]} 19. Kb1 {[%clk 0:01:55]}  Rc5 {[%clk 0:01:44]} 20. Nb3 {[%clk 0:01:43]}  Nc4 {[%clk 0:01:43]} 21. Qd3 {[%clk 0:01:31]}  Rc7 {[%clk 0:01:40]} 22. h5 {[%clk 0:01:27]}  Rfc8 {[%clk 0:01:15]} 23. Rdg1 {[%clk 0:00:57]}  b4 {[%clk 0:00:53]} 24. g6 {[%clk 0:00:43]}  Bf6 {[%clk 0:00:45]} 25. gxf7+ {[%clk 0:00:26]}  Qxf7 {[%clk 0:00:45]} 26. Bg4 {[%clk 0:00:26]}  Nxb2 {[%clk 0:00:41]} 27. Qxa6 {[%clk 0:00:25]}  Kh8 {[%clk 0:00:22]} 28. Be6 {[%clk 0:00:24]}  Qe8 {[%clk 0:00:19]} 29. Bxc8 {[%clk 0:00:17]}  Nxc8 {[%clk 0:00:20]} 30. Re1 {[%clk 0:00:15]}  Qd8 {[%clk 0:00:17]} 31. Qb5 {[%clk 0:00:12]}  Ne7 {[%clk 0:00:14]} 32. Re4 {[%clk 0:00:12]}  h6 {[%clk 0:00:12]} 33. Rhe1 {[%clk 0:00:12]}  Qc8 {[%clk 0:00:12]} 34. Bxd6 {[%clk 0:00:09]}  Rxc2 {[%clk 0:00:11]} 35. Bc5 {[%clk 0:00:04]}  Rg2 {[%clk 0:00:06]} 36. d6 {[%clk 0:00:04]}  Nd3 {[%clk 0:00:05]} 37. Qxd3 {[%clk 0:00:03]}  Rb2+ {[%clk 0:00:03]} 38. Kc1 {[%clk 0:00:03]}  Rxb3 {[%clk 0:00:02]} 39. axb3 {[%clk 0:00:03]}  Qxc5+ {[%clk 0:00:02]} 40. Kd1 {[%clk 0:00:03]}  Nd5 {[%clk 0:00:02]} 41. Re8# {[%clk 0:00:02]} 1-0


[Site "https://www.chess.com"]

[Event "Titled Tuesday Blitz November 15 Early 2022"]
[White "Desideri, Ricardo Maruchi"]
[Black "Pino Perez, Lazaro"]
[WhiteFideId "2110440"]
[BlackFideId "3517055"]
[WhiteElo "1945"]
[BlackElo "2170"]
[Result "0-1"]
[Round "09"]
[TimeControl "180+1"]
[Date "2022.11.16"]
[WhiteClock "0:00:02"]
[BlackClock "0:00:03"]

1. e4 {[%clk 0:03:00]}  c5 {[%clk 0:02:59]} 2. Nf3 {[%clk 0:02:58]}  g6 {[%clk 0:02:59]} 3. d4 {[%clk 0:02:58]}  cxd4 {[%clk 0:03:00]} 4. Nxd4 {[%clk 0:02:58]}  Nc6 {[%clk 0:03:00]} 5. Nc3 {[%clk 0:02:58]}  Bg7 {[%clk 0:03:01]} 6. Be3 {[%clk 0:02:57]}  Nf6 {[%clk 0:03:01]} 7. Bc4 {[%clk 0:02:48]}  O-O {[%clk 0:03:02]} 8. h4 {[%clk 0:02:46]}  Nxe4 {[%clk 0:01:53]} 9. Nxe4 {[%clk 0:02:33]}  d5 {[%clk 0:01:53]} 10. Nxc6 {[%clk 0:02:09]}  bxc6 {[%clk 0:01:54]} 11. Bb3 {[%clk 0:02:08]}  dxe4 {[%clk 0:01:50]} 12. c3 {[%clk 0:02:00]}  a5 {[%clk 0:01:24]} 13. h5 {[%clk 0:01:49]}  Qxd1+ {[%clk 0:01:01]} 14. Rxd1 {[%clk 0:01:47]}  a4 {[%clk 0:01:02]} 15. Bc4 {[%clk 0:01:46]}  a3 {[%clk 0:01:02]} 16. hxg6 {[%clk 0:01:38]}  hxg6 {[%clk 0:01:03]} 17. bxa3 {[%clk 0:00:32]}  Bxc3+ {[%clk 0:00:58]} 18. Kf1 {[%clk 0:00:32]}  Ra5 {[%clk 0:00:18]} 19. Rh4 {[%clk 0:00:20]}  Bf5 {[%clk 0:00:16]} 20. g4 {[%clk 0:00:17]}  Bc8 {[%clk 0:00:15]} 21. Kg2 {[%clk 0:00:15]}  Bf6 {[%clk 0:00:14]} 22. g5 {[%clk 0:00:13]}  Bxg5 {[%clk 0:00:13]} 23. Bxg5 {[%clk 0:00:12]}  Rxg5+ {[%clk 0:00:14]} 24. Kf1 {[%clk 0:00:11]}  Re5 {[%clk 0:00:12]} 25. Ke2 {[%clk 0:00:06]}  Bf5 {[%clk 0:00:10]} 26. Rg1 {[%clk 0:00:05]}  Kg7 {[%clk 0:00:08]} 27. Rgh1 {[%clk 0:00:04]}  Kf6 {[%clk 0:00:06]} 28. Bb3 {[%clk 0:00:02]}  Be6 {[%clk 0:00:03]} 0-1


[Site "https://www.chess.com"]

[Event "Titled Tuesday Blitz November 15 Early 2022"]
[White "Dudzinski, Pawel"]
[Black "Melian, Juan Sebastian"]
[WhiteFideId "1117890"]
[BlackFideId "3706575"]
[WhiteElo "2086"]
[BlackElo "2044"]
[Result "0-1"]
[Round "09"]
[TimeControl "180+1"]
[Date "2022.11.16"]
[WhiteClock "0:00:01"]
[BlackClock "0:00:35"]

1. e4 {[%clk 0:03:00]}  c6 {[%clk 0:02:59]} 2. d4 {[%clk 0:03:00]}  d5 {[%clk 0:03:00]} 3. exd5 {[%clk 0:03:01]}  cxd5 {[%clk 0:03:01]} 4. Bd3 {[%clk 0:03:01]}  Nc6 {[%clk 0:03:01]} 5. c3 {[%clk 0:03:01]}  e6 {[%clk 0:02:59]} 6. Bf4 {[%clk 0:03:00]}  Bd6 {[%clk 0:02:59]} 7. Ne2 {[%clk 0:03:00]}  Nge7 {[%clk 0:02:57]} 8. O-O {[%clk 0:02:56]}  O-O {[%clk 0:02:54]} 9. Nd2 {[%clk 0:02:53]}  Qc7 {[%clk 0:02:45]} 10. Bxd6 {[%clk 0:02:52]}  Qxd6 {[%clk 0:02:46]} 11. Nf3 {[%clk 0:02:51]}  f6 {[%clk 0:02:44]} 12. Qc2 {[%clk 0:02:43]}  g6 {[%clk 0:02:43]} 13. Rad1 {[%clk 0:02:39]}  a6 {[%clk 0:02:33]} 14. h4 {[%clk 0:02:09]}  Bd7 {[%clk 0:02:29]} 15. h5 {[%clk 0:02:09]}  Kg7 {[%clk 0:02:29]} 16. g3 {[%clk 0:01:36]}  Rae8 {[%clk 0:02:21]} 17. Kg2 {[%clk 0:01:35]}  e5 {[%clk 0:02:15]} 18. dxe5 {[%clk 0:01:12]}  fxe5 {[%clk 0:02:14]} 19. Ng5 {[%clk 0:00:58]}  Qf6 {[%clk 0:02:05]} 20. f4 {[%clk 0:00:51]}  Bg4 {[%clk 0:01:48]} 21. hxg6 {[%clk 0:00:47]}  hxg6 {[%clk 0:01:47]} 22. Rh1 {[%clk 0:00:35]}  Rh8 {[%clk 0:01:44]} 23. Qd2 {[%clk 0:00:17]}  e4 {[%clk 0:01:32]} 24. Rxh8 {[%clk 0:00:15]}  Rxh8 {[%clk 0:01:29]} 25. Bc2 {[%clk 0:00:12]}  Nf5 {[%clk 0:01:11]} 26. Rh1 {[%clk 0:00:10]}  Bf3+ {[%clk 0:01:09]} 27. Nxf3 {[%clk 0:00:07]}  exf3+ {[%clk 0:01:10]} 28. Kxf3 {[%clk 0:00:02]}  Rxh1 {[%clk 0:01:11]} 29. Qxd5 {[%clk 0:00:03]}  Rf1+ {[%clk 0:01:07]} 30. Ke4 {[%clk 0:00:03]}  Qe7+ {[%clk 0:01:00]} 31. Kd3 {[%clk 0:00:03]}  Qe3+ {[%clk 0:00:42]} 32. Kc4 {[%clk 0:00:03]}  Qxe2+ {[%clk 0:00:38]} 33. Bd3 {[%clk 0:00:04]}  Ne3+ {[%clk 0:00:38]} 34. Kb3 {[%clk 0:00:01]}  Qd1+ {[%clk 0:00:35]} 0-1


[Site "https://www.chess.com"]